fUSD/lending_fUSD_20250111
["ID","MTS","AMOUNT","RATE_DAILY","PERIOD"]
[348570612,1736626245000,-500.0,0.00012227,2]
[348570613,1736626245010,-500.0,0.00012227,2]
[348570614,1736626245020,-0.93719521,0.00012227,2]
[348570615,1736626245034,-499.06280479,0.00012227,2]
[348570616,1736626245043,-500.0,0.00012227,2]
[348570617,1736626245053,-500.0,0.00012227,2]
[348570618,1736626245062,-500.0,0.00012227,2]
[348570619,1736626245071,-500.0,0.00012227,2]
[348570620,1736626245080,-500.0,0.00012227,2]
[348570621,1736626245089,-193.73872781,0.00012227,2]
[348570622,1736626245098,-500.0,0.00012227,2]
[348570623,1736626245107,-622.27,0.00012227,2]
[348570624,1736626245116,-500.0,0.00012227,2]
[348570625,1736626245125,-500.0,0.00012227,2]
[348570626,1736626245134,-327.4281674,0.00012227,2]
[348570627,1736626245146,-172.5718326,0.00012227,2]
[348570628,1736626245155,-500.0,0.00012227,2]
[348570629,1736626245164,-261.13612763,0.00012227,2]
[348570630,1736626245175,-238.86387237,0.00012227,2]
[348570631,1736626245184,-500.0,0.00012227,2]
[348570632,1736626245193,-500.0,0.00012227,2]
[348570633,1736626245202,-578.52,0.00012227,2]
[348570634,1736626245211,-500.0,0.00012227,2]
[348570635,1736626245220,-931.98,0.00012227,2]
[348570636,1736626245229,-500.0,0.00012227,2]
[348570637,1736626245238,-2629.95,0.00012227,2]
[348570638,1736626245247,-616.73,0.00012227,2]
[348570639,1736626245255,-507.71065699,0.00012227,2]
[348570640,1736626245264,-873.51,0.00012227,2]
[348570641,1736626245273,-500.0,0.00012227,2]
[348570642,1736626245282,-500.0,0.00012227,2]
[348570643,1736626245291,-500.0,0.00012227,2]
[348570644,1736626245300,-534.91,0.00012227,2]
[348570645,1736626245310,-500.0,0.00012227,2]
[348570646,1736626245321,-1529.45,0.00012227,2]
[348570647,1736626245330,-500.0,0.00012227,2]
[348570648,1736626245341,-1277.19,0.00012227,2]
[348570649,1736626245350,-500.0,0.00012227,2]
[348570650,1736626245359,-1482.6,0.00012227,2]
[348570651,1736626245368,-980.67,0.00012227,2]
[348570652,1736626245376,-500.0,0.00012227,2]
[348570653,1736626245385,-500.0,0.00012227,2]
[348570654,1736626245394,-1004.29,0.00012227,2]
[348570655,1736626245403,-612.0,0.00012227,2]
[348570656,1736626245413,-971.57,0.00012227,2]
[348570657,1736626245422,-500.0,0.00012227,2]
[348570658,1736626245431,-500.0,0.00012227,2]
[348570659,1736626245441,-1616.84,0.00012227,2]
[348570660,1736626245451,-885.66,0.00012227,2]
[348570661,1736626245461,-724.15,0.00012227,2]
[348570662,1736626245473,-931.42,0.00012227,2]
[348570663,1736626245482,-624.54,0.00012227,2]
[348570664,1736626245492,-500.0,0.00012227,2]
[348570665,1736626245501,-538.88,0.00012227,2]
[348570666,1736626245511,-539.06,0.00012227,2]
[348570667,1736626245522,-500.0,0.00012227,2]
[348570668,1736626245533,-1176.92,0.00012227,2]
[348570669,1736626245544,-500.0,0.00012227,2]
[348570670,1736626245553,-500.0,0.00012227,2]
[348570671,1736626245562,-500.0,0.00012227,2]
[348570672,1736626245572,-1113.37,0.00012227,2]
[348570673,1736626245583,-500.0,0.00012227,2]
[348570674,1736626245592,-545.43,0.00012227,2]
[348570675,1736626245604,-500.0,0.00012227,2]
[348570676,1736626245614,-860.79,0.00012227,2]
[348570677,1736626245623,-1052.5,0.00012227,2]
[348570678,1736626245633,-1109.89,0.00012227,2]
[348570679,1736626245642,-500.0,0.00012227,2]
[348570680,1736626245652,-500.0,0.00012227,2]
[348570681,1736626245662,-150.0,0.00012229,2]
[348570682,1736626245671,-150.0,0.00012236,2]
[348570683,1736626245682,-150.0,0.00012238,2]
[348570684,1736626245691,-150.0,0.00012239,2]
[348570685,1736626245700,-150.0,0.0001224,2]
[348570686,1736626245711,-171.62205257,0.0001224,2]
[348570687,1736626245722,-150.0,0.00012255,2]
[348570688,1736626245733,-404.87638201,0.00012274,2]
[348570689,1736626245742,-150.0,0.00012274,2]
[348570690,1736626245751,-216.99073399,0.00012274,2]
[348570691,1736626245760,-150.5109069,0.00012274,2]
[348570692,1736626245770,-150.86544738,0.00012274,2]
[348570693,1736626245779,-150.09785196,0.00012274,2]
[348570694,1736626245788,-150.0,0.00012274,2]
[348570695,1736626245798,-9703.79999999,0.00012274,3]
[348570696,1736626245806,-1500.0,0.0001228,2]
[348570697,1736626245815,-201.02,0.00012281,2]
[348570698,1736626245825,-404.87638201,0.00012286,2]
[348570699,1736626245834,-216.99073399,0.00012286,2]
[348570700,1736626245842,-126432.17401411,0.0001229,2]
[348570705,1736626246151,-1000.0,0.0001143,2]
[348570706,1736626246160,-848.0499985,0.0001229,2]
[348570707,1736626246172,-7074.40821328,0.0001229,2]
[348570729,1736627219134,714.73,8.338e-05,2]
[348570760,1736627432217,-320.00000001,9.664e-05,2]
[348570761,1736627432229,-379.99999999,9.664e-05,2]
[348570762,1736627432238,-500.0,9.664e-05,2]
[348570763,1736627432248,-429.36186137,9.986e-05,2]
[348570764,1736627432335,-555.55813863,9.986e-05,2]
[348570765,1736627432345,-410.64,0.00010227,2]
[348570766,1736627432354,-255.35,0.00010228,2]
[348570767,1736627432364,-232.43803946,0.00010254,2]
[348570768,1736627432450,-17.56196054,0.00010254,2]
[348570769,1736627432460,-162.67,0.00010256,2]
[348570770,1736627432469,-250.0,0.00010257,2]
[348570771,1736627432479,-162.67,0.00010258,2]
[348570772,1736627432487,-162.67,0.00010261,2]
[348570773,1736627432496,-162.67,0.00010264,2]
[348570774,1736627432505,-162.67,0.00010266,2]
[348570775,1736627432515,-162.67,0.00010269,2]
[348570776,1736627432524,-162.67,0.00010272,2]
[348570777,1736627432533,-162.67,0.00010275,2]
[348570778,1736627432542,-32.53836224,0.00010277,2]
[348570779,1736627432575,-130.13163776,0.00010277,2]
[348570780,1736627432584,-162.67,0.0001028,2]
[348570781,1736627432597,-162.67,0.00010283,2]
[348570782,1736627432606,-162.67,0.00010285,2]
[348570783,1736627432616,-162.67,0.00010288,2]
[348570784,1736627432626,-162.67,0.00010291,2]
[348570785,1736627432636,-162.67,0.00010294,2]
[348570786,1736627432645,-162.67,0.00010296,2]
[348570787,1736627432655,-162.67,0.00010299,2]
[348570788,1736627432664,-162.67,0.00010302,2]
[348570789,1736627432673,-300.0,0.00010304,2]
[348570791,1736627432683,-150.0,0.00010304,2]
[348570793,1736627432693,-162.67,0.00010304,2]
[348570795,1736627432703,-162.67,0.00010307,2]
[348570797,1736627432712,-714.73,0.00010602,2]
[348570799,1736627432722,-711.68623832,0.00010867,2]
[348570802,1736627432732,-846.43476025,0.00010967,2]
[348570803,1736627432741,-8507.29855606,0.00010974,2]
[348570806,1736627432750,-8507.29855606,0.00010976,2]
[348570807,1736627432760,-846.43476025,0.00010977,2]
[348570810,1736627432769,-8507.29855606,0.00010978,2]
[348570812,1736627432779,-200.0,0.00010984,2]
[348570813,1736627432788,-200.0,0.00010985,2]
[348570815,1736627432797,-500.0,0.00010986,2]
[348570817,1736627432807,-8507.29855606,0.00010987,2]
[348570819,1736627432816,-8507.29855606,0.00010987,2]
[348570821,1736627432826,-846.43476025,0.00010988,2]
[348570823,1736627432835,-846.43476025,0.00010988,2]
[348570825,1736627432844,-200.0,0.00010988,2]
[348570827,1736627432853,-846.43476025,0.0001099,2]
[348570829,1736627432863,-8507.29855606,0.00010993,2]
[348570831,1736627432872,-200.0,0.00010993,2]
[348570833,1736627432882,-846.43476025,0.00010999,2]
[348570835,1736627432891,-550.0,0.00011,2]
[348570837,1736627432900,-700.0,0.00011034,2]
[348570839,1736627432909,-984.92,0.00011234,2]
[348570841,1736627432918,-166.22,0.000113,2]
[348570843,1736627432927,-420.0,0.00011331,2]
[348570845,1736627432936,-437.83,0.00011342,2]
[348570847,1736627432945,-772.01,0.00011342,2]
[348570849,1736627432955,-1005.4,0.00011353,2]
[348570851,1736627432964,-167.79,0.0001137,2]
[348570853,1736627432973,-200.0,0.000114,2]
[348570855,1736627432983,-1012.47,0.00011427,2]
[348570857,1736627432992,-2414.8469,0.00011429,2]
[348570858,1736627433001,-2930.091,0.00011429,2]
[348570860,1736627433011,-2579.1322,0.00011429,2]
[348570862,1736627433021,-203.0,0.0001147,2]
[348570864,1736627433030,-300.0,0.00011479,2]
[348570866,1736627433040,-162.52160843,0.000115,2]
[348570867,1736627433049,-410.64,0.00011505,2]
[348570868,1736627433059,-500.0,0.00011529,2]
[348570869,1736627433070,-500.0,0.00011529,2]
[348570870,1736627433080,-564.24,0.00011529,2]
[348570871,1736627433090,-500.0,0.00011529,2]
[348570872,1736627433099,-500.0,0.00011529,2]
[348570873,1736627433108,-571.21,0.00011529,2]
[348570874,1736627433117,-549.22,0.00011529,2]
[348570875,1736627433127,-500.0,0.00011529,2]
[348570876,1736627433136,-555.88,0.00011529,2]
[348570877,1736627433146,-500.0,0.00011529,2]
[348570878,1736627433155,-500.0,0.00011529,2]
[348570879,1736627433164,-500.0,0.00011529,2]
[348570880,1736627433173,-617.44,0.00011529,2]
[348570882,1736627433183,-500.0,0.00011529,2]
[348570883,1736627433192,-500.0,0.00011529,2]
[348570885,1736627433201,-500.0,0.00011529,2]
[348570887,1736627433210,-500.0,0.00011529,2]
[348570889,1736627433219,-500.0,0.00011529,2]
[348570891,1736627433229,-500.0,0.00011529,2]
[348570893,1736627433238,-500.0,0.00011529,2]
[348570895,1736627433247,-500.0,0.00011529,2]
[348570897,1736627433257,-626.73,0.00011529,2]
[348570899,1736627433266,-643.92,0.00011529,2]
[348570901,1736627433275,-500.0,0.00011529,2]
[348570903,1736627433285,-510.25,0.00011529,2]
[348570905,1736627433295,-500.0,0.00011529,2]
[348570907,1736627433304,-500.0,0.00011529,2]
[348570909,1736627433313,-500.0,0.00011529,2]
[348570911,1736627433326,-500.0,0.00011529,2]
[348570913,1736627433339,-516.58,0.00011529,2]
[348570915,1736627433348,-500.0,0.00011529,2]
[348570917,1736627433357,-500.0,0.00011529,2]
[348570918,1736627433367,-500.0,0.00011529,2]
[348570920,1736627433376,-500.0,0.00011529,2]
[348570922,1736627433385,-500.0,0.00011529,2]
[348570924,1736627433395,-500.0,0.00011529,2]
[348570926,1736627433404,-599.37054097,0.00011529,2]
[348570928,1736627433413,-587.63,0.00011529,2]
[348570930,1736627433423,-500.0,0.00011529,2]
[348570932,1736627433432,-500.0,0.00011529,2]
[348570934,1736627433441,-500.0,0.00011529,2]
[348570936,1736627433451,-500.0,0.00011529,2]
[348570938,1736627433461,-500.0,0.0001153,2]
[348570940,1736627433470,-500.0,0.0001153,2]
[348570942,1736627433479,-500.0,0.0001153,2]
[348570944,1736627433489,-657.39,0.0001153,2]
[348570946,1736627433498,-500.0,0.0001153,2]
[348570948,1736627433507,-500.0,0.0001153,2]
[348570950,1736627433517,-500.0,0.0001153,2]
[348570952,1736627433526,-500.0,0.0001153,2]
[348570954,1736627433535,-500.0,0.0001153,2]
[348570955,1736627433544,-500.0,0.0001153,2]
[348570957,1736627433554,-500.0,0.0001153,2]
[348570958,1736627433563,-500.0,0.0001153,2]
[348570961,1736627433573,-500.0,0.0001153,2]
[348570963,1736627433583,-1000.0,0.0001153,2]
[348570964,1736627433592,-566.48,0.0001153,2]
[348570966,1736627433601,-901.98760263,0.00011578,2]
[348570968,1736627433611,-203.0,0.0001161,2]
[348570970,1736627433620,-151.0,0.00011638,2]
[348570973,1736627433630,-150.0,0.00011638,2]
[348570974,1736627433639,-901.98760263,0.00011647,2]
[348570976,1736627433649,-1002.73,0.00011652,2]
[348570978,1736627433658,-1566.141,0.00011671,2]
[348570980,1736627433667,-500.0,0.00011677,2]
[348570982,1736627433677,-500.0,0.00011677,2]
[348570984,1736627433686,-500.0,0.00011677,2]
[348570986,1736627433696,-500.0,0.00011677,2]
[348570988,1736627433706,-500.0,0.00011677,2]
[348570991,1736627433715,-500.0,0.00011677,2]
[348570992,1736627433725,-500.0,0.00011677,2]
[348570994,1736627433734,-500.0,0.00011677,2]
[348570996,1736627433743,-500.0,0.00011677,2]
[348570998,1736627433752,-500.0,0.00011677,2]
[348571000,1736627433761,-401.37075738,0.00011677,2]
[348571003,1736627433772,-500.0,0.00011677,2]
[348571004,1736627433781,-500.0,0.00011677,2]
[348571006,1736627433790,-500.0,0.00011677,2]
[348571008,1736627433799,-500.0,0.00011678,2]
[348571010,1736627433808,-500.0,0.00011678,2]
[348571012,1736627433817,-500.0,0.00011678,2]
[348571015,1736627433828,-500.0,0.00011678,2]
[348571017,1736627433838,-500.0,0.00011678,2]
[348571019,1736627433848,-500.0,0.00011678,2]
[348571021,1736627433857,-500.0,0.00011678,2]
[348571023,1736627433866,-500.0,0.00011678,2]
[348571025,1736627433876,-500.0,0.00011678,2]
[348571027,1736627433885,-500.0,0.00011678,2]
[348571028,1736627433894,-500.0,0.00011678,2]
[348571030,1736627433903,-500.0,0.00011678,2]
[348571032,1736627433912,-500.0,0.00011678,2]
[348571034,1736627433921,-500.0,0.00011678,2]
[348571036,1736627433930,-500.0,0.00011678,2]
[348571038,1736627433939,-500.0,0.00011678,2]
[348571040,1736627433948,-500.0,0.00011678,2]
[348571042,1736627433957,-626.16,0.00011678,2]
[348571044,1736627433966,-500.0,0.00011678,2]
[348571046,1736627433975,-500.0,0.00011678,2]
[348571048,1736627433984,-500.0,0.00011678,2]
[348571050,1736627433993,-500.0,0.00011678,2]
[348571052,1736627434002,-500.0,0.00011678,2]
[348571054,1736627434012,-500.0,0.00011678,2]
[348571056,1736627434021,-500.0,0.00011678,2]
[348571058,1736627434030,-500.0,0.00011678,2]
[348571060,1736627434039,-500.0,0.00011678,2]
[348571062,1736627434048,-500.0,0.00011678,2]
[348571064,1736627434057,-500.0,0.00011678,2]
[348571066,1736627434065,-500.0,0.00011678,2]
[348571068,1736627434076,-500.0,0.00011678,2]
[348571070,1736627434085,-500.0,0.00011678,2]
[348571072,1736627434096,-500.0,0.00011678,2]
[348571074,1736627434105,-501.32225581,0.00011678,2]
[348571076,1736627434114,-500.0,0.00011678,2]
[348571078,1736627434123,-500.0,0.00011678,2]
[348571080,1736627434132,-500.0,0.00011678,2]
[348571082,1736627434142,-500.0,0.00011678,2]
[348571084,1736627434151,-500.0,0.00011678,2]
[348571086,1736627434160,-502.59534447,0.00011678,2]
[348571088,1736627434169,-500.0,0.00011678,2]
[348571090,1736627434178,-500.0,0.00011678,2]
[348571092,1736627434187,-455.8480764,0.00011678,2]
[348571094,1736627434196,-500.0,0.00011678,2]
[348571095,1736627434205,-500.0,0.00011678,2]
[348571097,1736627434214,-500.0,0.00011678,2]
[348571099,1736627434224,-500.0,0.00011678,2]
[348571101,1736627434234,-500.0,0.00011678,2]
[348571103,1736627434243,-500.0,0.00011678,2]
[348571106,1736627434253,-500.98064584,0.00011678,2]
[348571107,1736627434262,-500.0,0.00011678,2]
[348571109,1736627434271,-352.34791048,0.00011678,2]
[348571111,1736627434281,-500.0,0.00011678,2]
[348571113,1736627434290,-500.0,0.00011678,2]
[348571115,1736627434300,-500.64057856,0.00011678,2]
[348571117,1736627434309,-500.0,0.00011678,2]
[348571119,1736627434320,-504.80682926,0.00011678,2]
[348571121,1736627434333,-500.60756101,0.00011678,2]
[348571123,1736627434343,-500.0,0.00011678,2]
[348571125,1736627434352,-500.0,0.00011678,2]
[348571127,1736627434362,-500.0,0.00011678,2]
[348571129,1736627434373,-501.44011796,0.00011678,2]
[348571131,1736627434382,-207.81259824,0.00011678,2]
[348571133,1736627434392,-500.0,0.00011678,2]
[348571135,1736627434403,-500.0,0.00011678,2]
[348571137,1736627434413,-500.0,0.00011678,2]
[348571139,1736627434422,-500.0,0.00011678,2]
[348571141,1736627434431,-208.54086522,0.00011678,2]
[348571143,1736627434440,-500.0,0.00011678,2]
[348571145,1736627434449,-500.0,0.00011678,2]
[348571147,1736627434459,-500.0,0.00011678,2]
[348571149,1736627434468,-500.0,0.00011678,2]
[348571151,1736627434477,-500.0,0.00011678,2]
[348571153,1736627434487,-500.0,0.00011678,2]
[348571155,1736627434496,-500.0,0.00011678,2]
[348571157,1736627434505,-500.0,0.00011678,2]
[348571159,1736627434514,-500.0,0.00011678,2]
[348571161,1736627434524,-613.25,0.00011678,2]
[348571163,1736627434532,-500.0,0.00011678,2]
[348571165,1736627434542,-500.0,0.00011678,2]
[348571167,1736627434551,-520.44,0.00011678,2]
[348571169,1736627434560,-500.0,0.00011678,2]
[348571171,1736627434569,-503.4,0.00011678,2]
[348571173,1736627434581,-500.0,0.00011678,2]
[348571175,1736627434591,-500.0,0.00011678,2]
[348571177,1736627434600,-500.0,0.00011678,2]
[348571179,1736627434608,-500.0,0.00011678,2]
[348571181,1736627434618,-500.0,0.00011678,2]
[348571183,1736627434627,-539.48,0.00011678,2]
[348571185,1736627434636,-500.0,0.00011678,2]
[348571187,1736627434645,-500.0,0.00011678,2]
[348571189,1736627434654,-500.0,0.00011678,2]
[348571191,1736627434663,-500.0,0.00011678,2]
[348571193,1736627434672,-500.0,0.00011678,2]
[348571195,1736627434681,-500.0,0.00011678,2]
[348571197,1736627434690,-500.0,0.00011678,2]
[348571199,1736627434699,-500.0,0.00011678,2]
[348571201,1736627434708,-500.0,0.00011678,2]
[348571203,1736627434718,-500.0,0.00011678,2]
[348571205,1736627434727,-225.05,0.00011678,2]
[348571207,1736627434736,-500.0,0.00011678,2]
[348571209,1736627434746,-247.09929217,0.00011678,2]
[348571211,1736627434755,-500.0,0.00011678,2]
[348571213,1736627434764,-500.0,0.00011678,2]
[348571215,1736627434773,-500.0,0.00011678,2]
[348571217,1736627434782,-500.0,0.00011678,2]
[348571219,1736627434791,-500.0,0.00011678,2]
[348571221,1736627434801,-500.0,0.00011678,2]
[348571223,1736627434810,-500.0,0.00011678,2]
[348571225,1736627434819,-500.0,0.00011678,2]
[348571227,1736627434830,-500.0,0.00011678,2]
[348571229,1736627434839,-500.0,0.00011678,2]
[348571231,1736627434848,-500.0,0.00011678,2]
[348571233,1736627434857,-500.0,0.00011678,2]
[348571235,1736627434866,-589.47,0.00011678,2]
[348571237,1736627434876,-500.0,0.00011678,2]
[348571239,1736627434884,-500.0,0.00011678,2]
[348571241,1736627434894,-500.0,0.00011678,2]
[348571243,1736627434903,-500.0,0.00011678,2]
[348571245,1736627434911,-500.0,0.00011678,2]
[348571247,1736627434920,-500.0,0.00011678,2]
[348571249,1736627434929,-500.0,0.00011678,2]
[348571251,1736627434939,-500.0,0.00011678,2]
[348571253,1736627434947,-500.0,0.00011678,2]
[348571255,1736627434956,-500.0,0.00011678,2]
[348571257,1736627434965,-549.27,0.00011678,2]
[348571259,1736627434974,-500.0,0.00011678,2]
[348571261,1736627434983,-500.0,0.00011678,2]
[348571263,1736627434992,-500.0,0.00011678,2]
[348571265,1736627435001,-600.27,0.00011678,2]
[348571267,1736627435010,-500.0,0.00011678,2]
[348571269,1736627435019,-500.0,0.00011678,2]
[348571270,1736627435029,-500.0,0.00011678,2]
[348571272,1736627435038,-500.0,0.00011678,2]
[348571274,1736627435047,-540.84,0.00011678,2]
[348571276,1736627435056,-500.0,0.00011678,2]
[348571278,1736627435065,-500.0,0.00011678,2]
[348571280,1736627435074,-500.0,0.00011678,2]
[348571282,1736627435083,-599.8,0.00011678,2]
[348571284,1736627435093,-500.0,0.00011678,2]
[348571286,1736627435102,-578.15,0.00011678,2]
[348571288,1736627435111,-500.0,0.00011678,2]
[348571290,1736627435120,-500.0,0.00011678,2]
[348571292,1736627435130,-500.0,0.00011678,2]
[348571294,1736627435139,-521.83,0.00011678,2]
[348571296,1736627435148,-500.0,0.00011678,2]
[348571298,1736627435157,-500.0,0.00011678,2]
[348571300,1736627435166,-500.0,0.00011678,2]
[348571302,1736627435175,-500.0,0.00011678,2]
[348571304,1736627435184,-500.0,0.00011678,2]
[348571306,1736627435193,-501.88690847,0.00011678,2]
[348571308,1736627435202,-949.94,0.00011678,2]
[348571310,1736627435211,-500.0,0.00011678,2]
[348571312,1736627435220,-500.0,0.00011678,2]
[348571314,1736627435230,-512.93,0.00011678,2]
[348571316,1736627435239,-500.0,0.00011678,2]
[348571318,1736627435248,-500.0,0.00011678,2]
[348571320,1736627435257,-500.0,0.00011678,2]
[348571322,1736627435266,-500.0,0.00011678,2]
[348571324,1736627435275,-1477.4,0.00011678,2]
[348571326,1736627435284,-500.0,0.00011678,2]
[348571328,1736627435295,-278.4712197,0.00011678,2]
[348571330,1736627435303,-500.0,0.00011678,2]
[348571333,1736627435313,-587.75,0.00011678,2]
[348571335,1736627435327,-585.54,0.00011678,2]
[348571337,1736627435336,-500.0,0.00011678,2]
[348571339,1736627435345,-500.0,0.00011678,2]
[348571341,1736627435354,-915.73,0.00011678,2]
[348571342,1736627435363,-500.0,0.00011678,2]
[348571343,1736627435373,-500.0,0.00011678,2]
[348571344,1736627435381,-500.0,0.00011678,2]
[348571345,1736627435390,-500.0,0.00011678,2]
[348571346,1736627435400,-2609.14,0.00011678,2]
[348571347,1736627435408,-500.0,0.00011678,2]
[348571348,1736627435417,-500.0,0.00011678,2]
[348571349,1736627435425,-500.0,0.00011678,2]
[348571350,1736627435434,-500.0,0.00011678,2]
[348571351,1736627435445,-500.0,0.00011678,2]
[348571352,1736627435456,-500.0,0.00011678,2]
[348571353,1736627435466,-500.0,0.00011678,2]
[348571354,1736627435476,-500.0,0.00011678,2]
[348571355,1736627435486,-500.0,0.00011678,2]
[348571356,1736627435496,-500.0,0.00011678,2]
[348571357,1736627435505,-500.0,0.00011678,2]
[348571358,1736627435515,-557.63,0.00011678,2]
[348571359,1736627435525,-500.0,0.00011678,2]
[348571360,1736627435534,-524.27,0.00011678,2]
[348571361,1736627435543,-500.0,0.00011678,2]
[348571362,1736627435552,-500.0,0.00011678,2]
[348571363,1736627435562,-500.0,0.00011678,2]
[348571364,1736627435571,-500.0,0.00011678,2]
[348571365,1736627435581,-866.1,0.00011678,2]
[348571366,1736627435590,-500.0,0.00011678,2]
[348571367,1736627435600,-1202.7,0.00011678,2]
[348571368,1736627435611,-500.0,0.00011678,2]
[348571369,1736627435619,-500.0,0.00011678,2]
[348571370,1736627435628,-500.0,0.00011678,2]
[348571371,1736627435638,-500.0,0.00011678,2]
[348571372,1736627435647,-500.0,0.00011678,2]
[348571373,1736627435656,-500.0,0.00011678,2]
[348571374,1736627435666,-500.0,0.00011678,2]
[348571375,1736627435675,-500.0,0.00011678,2]
[348571376,1736627435684,-500.0,0.00011678,2]
[348571377,1736627435694,-513.0,0.00011678,2]
[348571378,1736627435703,-1485.21,0.00011678,2]
[348571379,1736627435712,-500.0,0.00011678,2]
[348571380,1736627435722,-500.0,0.00011678,2]
[348571381,1736627435731,-500.0,0.00011678,2]
[348571382,1736627435740,-500.0,0.00011678,2]
[348571383,1736627435749,-500.0,0.00011678,2]
[348571384,1736627435759,-500.0,0.00011678,2]
[348571385,1736627435768,-500.0,0.00011678,2]
[348571386,1736627435777,-500.0,0.00011678,2]
[348571387,1736627435786,-986.96,0.00011678,2]
[348571388,1736627435796,-500.0,0.00011678,2]
[348571389,1736627435805,-500.0,0.00011678,2]
[348571390,1736627435814,-500.0,0.00011678,2]
[348571391,1736627435823,-500.0,0.00011678,2]
[348571392,1736627435832,-500.0,0.00011678,2]
[348571393,1736627435842,-500.0,0.00011678,2]
[348571394,1736627435852,-1563.13,0.00011678,2]
[348571395,1736627435862,-1679.152934,0.00011678,2]
[348571396,1736627435871,-702.03,0.00011678,2]
[348571397,1736627435881,-500.0,0.00011678,2]
[348571398,1736627435892,-159.790057,0.00011678,2]
[348571399,1736627435902,-891.31,0.00011678,2]
[348571400,1736627435911,-500.0,0.00011678,2]
[348571401,1736627435920,-500.0,0.00011678,2]
[348571402,1736627435930,-157.994958,0.00011678,2]
[348571403,1736627435939,-641.65,0.00011678,2]
[348571404,1736627435948,-500.0,0.00011678,2]
[348571405,1736627436127,-500.0,0.00011678,2]
[348571406,1736627436137,-500.0,0.00011678,2]
[348571407,1736627436146,-500.0,0.00011678,2]
[348571408,1736627436155,-524.39,0.00011678,2]
[348571409,1736627436164,-500.0,0.00011678,2]
[348571410,1736627436174,-500.0,0.00011678,2]
[348571411,1736627436183,-500.0,0.00011678,2]
[348571412,1736627436193,-883.47,0.00011678,2]
[348571413,1736627436203,-500.0,0.00011678,2]
[348571414,1736627436212,-500.0,0.00011678,2]
[348571415,1736627436222,-500.0,0.00011678,2]
[348571416,1736627436231,-500.0,0.00011678,2]
[348571417,1736627436240,-1609.853355,0.00011678,2]
[348571418,1736627436249,-1102.1,0.00011678,2]
[348571419,1736627436259,-500.0,0.00011678,2]
[348571420,1736627436268,-500.0,0.00011678,2]
[348571421,1736627436277,-500.0,0.00011678,2]
[348571422,1736627436286,-971.16,0.00011678,2]
[348571423,1736627436295,-500.0,0.00011678,2]
[348571424,1736627436304,-500.0,0.00011678,2]
[348571425,1736627436318,-500.0,0.00011678,2]
[348571426,1736627436331,-500.0,0.00011678,2]
[348571427,1736627436340,-500.0,0.00011678,2]
[348571428,1736627436349,-609.45,0.00011678,2]
[348571429,1736627436358,-500.0,0.00011678,2]
[348571430,1736627436369,-500.0,0.00011678,2]
[348571431,1736627436377,-500.0,0.00011678,2]
[348571432,1736627436386,-500.0,0.00011678,2]